[Event "Titled Tuesday Blitz August 31 2021"]
[White "Krysa, Leandro"]
[Black "Martinovsky, Ian"]
[WhiteFideId "116807"]
[BlackFideId "2603314"]
[WhiteElo "2490"]
[BlackElo "2245"]
[Result "1-0"]
[Round "07"]
[TimeControl "180+1"]
[Date "2021.08.31"]
[WhiteClock "0:02:05"]
[BlackClock "0:02:29"]

1. e4 {[%clk 0:03:00]}  g6 {[%clk 0:02:59]} 2. d4 {[%clk 0:02:58]}  Bg7 {[%clk 0:03:00]} 3. Nf3 {[%clk 0:02:57]}  d6 {[%clk 0:02:58]} 4. Bc4 {[%clk 0:02:57]}  e6 {[%clk 0:02:58]} 5. Bb3 {[%clk 0:02:57]}  Ne7 {[%clk 0:02:59]} 6. O-O {[%clk 0:02:57]}  Nd7 {[%clk 0:02:59]} 7. Re1 {[%clk 0:02:58]}  O-O {[%clk 0:02:59]} 8. Nbd2 {[%clk 0:02:57]}  a5 {[%clk 0:02:59]} 9. a4 {[%clk 0:02:56]}  c5 {[%clk 0:03:00]} 10. c3 {[%clk 0:02:53]}  b6 {[%clk 0:02:56]} 11. Nf1 {[%clk 0:02:53]}  Bb7 {[%clk 0:02:57]} 12. Ng3 {[%clk 0:02:51]}  Rc8 {[%clk 0:02:55]} 13. h4 {[%clk 0:02:50]}  c4 {[%clk 0:02:51]} 14. Bc2 {[%clk 0:02:48]}  e5 {[%clk 0:02:51]} 15. h5 {[%clk 0:02:46]}  exd4 {[%clk 0:02:50]} 16. Nxd4 {[%clk 0:02:44]}  Ne5 {[%clk 0:02:45]} 17. hxg6 {[%clk 0:02:38]}  fxg6 {[%clk 0:02:44]} 18. Ne6 {[%clk 0:02:36]}  Qd7 {[%clk 0:02:44]} 19. Nxf8 {[%clk 0:02:36]}  Rxf8 {[%clk 0:02:45]} 20. Be3 {[%clk 0:02:16]}  Ng4 {[%clk 0:02:43]} 21. Qe2 {[%clk 0:02:16]}  Be5 {[%clk 0:02:40]} 22. Nf1 {[%clk 0:02:10]}  d5 {[%clk 0:02:39]} 23. Rad1 {[%clk 0:02:07]}  Qc7 {[%clk 0:02:29]} 24. Qxg4 {[%clk 0:02:05]} 1-0


[Site "https://www.chess.com"]

[Event "Titled Tuesday Blitz August 31 2021"]
[White "Liyanage, Ranindu Dilshan"]
[Black "LEGENYA1998"]
[WhiteFideId "9915834"]
[WhiteElo "1839"]
[BlackElo "2422"]
[Result "1-0"]
[Round "07"]
[TimeControl "180+1"]
[Date "2021.08.31"]
[WhiteClock "0:01:00"]
[BlackClock "0:00:03"]

1. e4 {[%clk 0:03:00]}  g6 {[%clk 0:02:57]} 2. d4 {[%clk 0:02:59]}  Bg7 {[%clk 0:02:56]} 3. Nc3 {[%clk 0:02:59]}  c6 {[%clk 0:02:53]} 4. f4 {[%clk 0:02:59]}  d5 {[%clk 0:02:53]} 5. e5 {[%clk 0:02:59]}  h5 {[%clk 0:02:53]} 6. Bd3 {[%clk 0:02:58]}  Bg4 {[%clk 0:02:53]} 7. Nf3 {[%clk 0:02:58]}  Nh6 {[%clk 0:02:49]} 8. h3 {[%clk 0:02:57]}  Bxf3 {[%clk 0:02:48]} 9. Qxf3 {[%clk 0:02:58]}  e6 {[%clk 0:02:46]} 10. g3 {[%clk 0:02:57]}  Nf5 {[%clk 0:02:46]} 11. Ne2 {[%clk 0:02:57]}  Nd7 {[%clk 0:02:44]} 12. c3 {[%clk 0:02:52]}  Qb6 {[%clk 0:02:44]} 13. Rg1 {[%clk 0:02:37]}  c5 {[%clk 0:02:43]} 14. g4 {[%clk 0:02:37]}  hxg4 {[%clk 0:02:42]} 15. hxg4 {[%clk 0:02:38]}  Ne7 {[%clk 0:02:40]} 16. Be3 {[%clk 0:02:24]}  cxd4 {[%clk 0:02:30]} 17. Bxd4 {[%clk 0:02:21]}  Nc5 {[%clk 0:02:27]} 18. b4 {[%clk 0:02:13]}  Nxd3+ {[%clk 0:02:25]} 19. Qxd3 {[%clk 0:02:13]}  Qc7 {[%clk 0:02:18]} 20. O-O-O {[%clk 0:02:03]}  a5 {[%clk 0:02:08]} 21. b5 {[%clk 0:02:01]}  Rc8 {[%clk 0:02:06]} 22. Kb1 {[%clk 0:01:57]}  Qc4 {[%clk 0:01:53]} 23. Qxc4 {[%clk 0:01:55]}  dxc4 {[%clk 0:01:52]} 24. Rh1 {[%clk 0:01:49]}  Nd5 {[%clk 0:01:52]} 25. Rxh8+ {[%clk 0:01:44]}  Bxh8 {[%clk 0:01:51]} 26. Rf1 {[%clk 0:01:43]}  Kd7 {[%clk 0:01:44]} 27. a4 {[%clk 0:01:41]}  Bg7 {[%clk 0:01:43]} 28. f5 {[%clk 0:01:40]}  gxf5 {[%clk 0:01:43]} 29. gxf5 {[%clk 0:01:40]}  Rh8 {[%clk 0:01:41]} 30. Ng3 {[%clk 0:01:30]}  Rh3 {[%clk 0:01:16]} 31. Ne4 {[%clk 0:01:28]}  exf5 {[%clk 0:01:07]} 32. Rxf5 {[%clk 0:01:15]}  Rh1+ {[%clk 0:00:57]} 33. Kc2 {[%clk 0:01:07]}  Rh2+ {[%clk 0:00:57]} 34. Kd1 {[%clk 0:01:04]}  Rh1+ {[%clk 0:00:41]} 35. Ke2 {[%clk 0:01:02]}  Ke6 {[%clk 0:00:21]} 36. Rf2 {[%clk 0:01:01]}  b6 {[%clk 0:00:03]} 37. Ng5+ {[%clk 0:01:00]} 1-0


[Site "https://www.chess.com"]

[Event "Titled Tuesday Blitz August 31 2021"]
[White "Maghsoodloo, Parham"]
[Black "Timmermans, Mark"]
[WhiteFideId "12539929"]
[BlackFideId "1026399"]
[WhiteElo "2601"]
[BlackElo "2460"]
[Result "1-0"]
[Round "07"]
[TimeControl "180+1"]
[Date "2021.08.31"]
[WhiteClock "0:01:14"]
[BlackClock "0:00:08"]

1. e4 {[%clk 0:03:00]}  e5 {[%clk 0:03:00]} 2. Nf3 {[%clk 0:03:01]}  Nc6 {[%clk 0:03:00]} 3. Bb5 {[%clk 0:03:01]}  f5 {[%clk 0:03:01]} 4. d4 {[%clk 0:03:01]}  fxe4 {[%clk 0:03:01]} 5. Bxc6 {[%clk 0:03:01]}  dxc6 {[%clk 0:02:54]} 6. Nxe5 {[%clk 0:03:01]}  Nf6 {[%clk 0:02:54]} 7. Nc3 {[%clk 0:03:01]}  Bd6 {[%clk 0:02:54]} 8. O-O {[%clk 0:03:01]}  Qe7 {[%clk 0:02:48]} 9. Bg5 {[%clk 0:03:00]}  Bf5 {[%clk 0:02:47]} 10. Bxf6 {[%clk 0:02:20]}  Qxf6 {[%clk 0:02:42]} 11. f4 {[%clk 0:02:18]}  exf3 {[%clk 0:02:25]} 12. Qxf3 {[%clk 0:02:17]}  O-O {[%clk 0:02:24]} 13. Qe2 {[%clk 0:02:15]}  Rae8 {[%clk 0:02:15]} 14. Rae1 {[%clk 0:02:15]}  Qe6 {[%clk 0:02:00]} 15. Qd2 {[%clk 0:02:02]}  Qc8 {[%clk 0:01:43]} 16. Nc4 {[%clk 0:02:00]}  Bb4 {[%clk 0:01:20]} 17. a3 {[%clk 0:01:59]}  Be6 {[%clk 0:01:08]} 18. Ne5 {[%clk 0:01:52]}  Bd6 {[%clk 0:01:07]} 19. Ne4 {[%clk 0:01:52]}  Rxf1+ {[%clk 0:01:03]} 20. Rxf1 {[%clk 0:01:52]}  Bxe5 {[%clk 0:01:01]} 21. dxe5 {[%clk 0:01:53]}  Bc4 {[%clk 0:01:01]} 22. Qg5 {[%clk 0:01:51]}  Bxf1 {[%clk 0:00:52]} 23. Nf6+ {[%clk 0:01:51]}  Kh8 {[%clk 0:00:49]} 24. Nxe8 {[%clk 0:01:51]}  Qxe8 {[%clk 0:00:50]} 25. Kxf1 {[%clk 0:01:51]}  h6 {[%clk 0:00:51]} 26. Qf5 {[%clk 0:01:51]}  Kg8 {[%clk 0:00:51]} 27. Ke2 {[%clk 0:01:49]}  c5 {[%clk 0:00:44]} 28. e6 {[%clk 0:01:43]}  Qf8 {[%clk 0:00:30]} 29. g4 {[%clk 0:01:32]}  b6 {[%clk 0:00:21]} 30. h4 {[%clk 0:01:30]}  Qe7 {[%clk 0:00:19]} 31. g5 {[%clk 0:01:29]}  c6 {[%clk 0:00:19]} 32. g6 {[%clk 0:01:27]}  Qe8 {[%clk 0:00:11]} 33. h5 {[%clk 0:01:21]}  b5 {[%clk 0:00:08]} 34. Kf3 {[%clk 0:01:21]}  Qe7 {[%clk 0:00:08]} 35. Qf7+ {[%clk 0:01:14]} 1-0


[Site "https://www.chess.com"]

[Event "Titled Tuesday Blitz August 31 2021"]
[White "Martin Carmona, Gaston Manuel"]
[Black "Solon, Nathan"]
[WhiteFideId "22284567"]
[BlackFideId "2017229"]
[WhiteElo "2161"]
[BlackElo "2654"]
[Result "0-1"]
[Round "07"]
[TimeControl "180+1"]
[Date "2021.08.31"]
[WhiteClock "0:00:08"]
[BlackClock "0:00:34"]

1. c4 {[%clk 0:02:47]}  Nf6 {[%clk 0:02:59]} 2. g3 {[%clk 0:02:42]}  e6 {[%clk 0:02:59]} 3. Bg2 {[%clk 0:02:42]}  d5 {[%clk 0:03:00]} 4. Nf3 {[%clk 0:02:42]}  Be7 {[%clk 0:02:59]} 5. d4 {[%clk 0:02:43]}  O-O {[%clk 0:02:58]} 6. O-O {[%clk 0:02:43]}  a5 {[%clk 0:02:59]} 7. Qc2 {[%clk 0:02:42]}  c6 {[%clk 0:02:52]} 8. Nbd2 {[%clk 0:02:42]}  b6 {[%clk 0:02:49]} 9. e4 {[%clk 0:02:42]}  Bb7 {[%clk 0:02:47]} 10. b3 {[%clk 0:02:34]}  Na6 {[%clk 0:02:46]} 11. a3 {[%clk 0:02:34]}  Rc8 {[%clk 0:02:43]} 12. Bb2 {[%clk 0:02:34]}  c5 {[%clk 0:02:37]} 13. exd5 {[%clk 0:02:33]}  exd5 {[%clk 0:02:34]} 14. Qf5 {[%clk 0:02:23]}  g6 {[%clk 0:02:29]} 15. Qh3 {[%clk 0:02:23]}  Rc7 {[%clk 0:02:11]} 16. Ne5 {[%clk 0:01:46]}  Re8 {[%clk 0:02:11]} 17. Rad1 {[%clk 0:01:35]}  cxd4 {[%clk 0:02:04]} 18. Bxd4 {[%clk 0:01:31]}  Bc5 {[%clk 0:02:02]} 19. Bxc5 {[%clk 0:01:25]}  Nxc5 {[%clk 0:02:03]} 20. f4 {[%clk 0:01:12]}  Qe7 {[%clk 0:01:29]} 21. Qh4 {[%clk 0:01:01]}  Nce4 {[%clk 0:01:17]} 22. Nxe4 {[%clk 0:01:00]}  dxe4 {[%clk 0:01:18]} 23. Rfe1 {[%clk 0:00:55]}  Kg7 {[%clk 0:01:18]} 24. g4 {[%clk 0:00:53]}  Qxa3 {[%clk 0:01:05]} 25. g5 {[%clk 0:00:49]}  Nh5 {[%clk 0:01:05]} 26. Bxe4 {[%clk 0:00:34]}  Bxe4 {[%clk 0:01:06]} 27. Rxe4 {[%clk 0:00:35]}  Qxb3 {[%clk 0:01:06]} 28. Red4 {[%clk 0:00:32]}  Qe3+ {[%clk 0:01:00]} 29. Qf2 {[%clk 0:00:19]}  Qxf2+ {[%clk 0:01:00]} 30. Kxf2 {[%clk 0:00:19]}  f6 {[%clk 0:00:58]} 31. Rd7+ {[%clk 0:00:19]}  Re7 {[%clk 0:00:58]} 32. Rxe7+ {[%clk 0:00:12]}  Rxe7 {[%clk 0:00:58]} 33. Nc6 {[%clk 0:00:13]}  Rc7 {[%clk 0:00:57]} 34. Nd8 {[%clk 0:00:13]}  Nxf4 {[%clk 0:00:50]} 35. Rd4 {[%clk 0:00:12]}  fxg5 {[%clk 0:00:49]} 36. Rxf4 {[%clk 0:00:11]}  gxf4 {[%clk 0:00:45]} 37. Ne6+ {[%clk 0:00:12]}  Kf6 {[%clk 0:00:45]} 38. Nxc7 {[%clk 0:00:13]}  Ke5 {[%clk 0:00:44]} 39. Nb5 {[%clk 0:00:13]}  g5 {[%clk 0:00:42]} 40. Kf3 {[%clk 0:00:13]}  h5 {[%clk 0:00:42]} 41. h3 {[%clk 0:00:14]}  a4 {[%clk 0:00:39]} 42. Na3 {[%clk 0:00:11]}  Kd4 {[%clk 0:00:37]} 43. h4 {[%clk 0:00:11]}  g4+ {[%clk 0:00:33]} 44. Kxf4 {[%clk 0:00:12]}  Kc3 {[%clk 0:00:34]} 45. Kg3 {[%clk 0:00:08]}  Kb2 {[%clk 0:00:34]} 46. Nb5 {[%clk 0:00:08]}  a3 {[%clk 0:00:34]} 0-1


[Site "https://www.chess.com"]

[Event "Titled Tuesday Blitz August 31 2021"]
[White "Mokshanov, Alexey"]
[Black "Buscar, Michael"]
[WhiteFideId "24121657"]
[BlackFideId "2603616"]
[WhiteElo "2262"]
[BlackElo "2010"]
[Result "1-0"]
[Round "07"]
[TimeControl "180+1"]
[Date "2021.08.31"]
[WhiteClock "0:01:43"]
[BlackClock "0:01:35"]

1. e4 {[%clk 0:03:00]}  c5 {[%clk 0:02:58]} 2. Nf3 {[%clk 0:03:00]}  Nc6 {[%clk 0:02:58]} 3. Bb5 {[%clk 0:03:00]}  Nf6 {[%clk 0:02:58]} 4. Bxc6 {[%clk 0:03:00]}  dxc6 {[%clk 0:02:58]} 5. Nc3 {[%clk 0:02:59]}  g6 {[%clk 0:02:58]} 6. O-O {[%clk 0:02:59]}  Bg7 {[%clk 0:02:58]} 7. h3 {[%clk 0:03:00]}  O-O {[%clk 0:02:55]} 8. d3 {[%clk 0:03:00]}  Ne8 {[%clk 0:02:55]} 9. Be3 {[%clk 0:02:59]}  b6 {[%clk 0:02:56]} 10. Qd2 {[%clk 0:03:00]}  Nc7 {[%clk 0:02:56]} 11. Bh6 {[%clk 0:03:00]}  Ne6 {[%clk 0:02:57]} 12. Bxg7 {[%clk 0:03:00]}  Kxg7 {[%clk 0:02:57]} 13. Ne2 {[%clk 0:02:59]}  Nd4 {[%clk 0:02:57]} 14. Nexd4 {[%clk 0:02:47]}  cxd4 {[%clk 0:02:57]} 15. c3 {[%clk 0:02:48]}  dxc3 {[%clk 0:02:52]} 16. Qxc3+ {[%clk 0:02:48]}  Kg8 {[%clk 0:02:49]} 17. d4 {[%clk 0:02:46]}  Ba6 {[%clk 0:02:44]} 18. Rfe1 {[%clk 0:02:43]}  Bb7 {[%clk 0:02:35]} 19. Rad1 {[%clk 0:02:40]}  Rc8 {[%clk 0:02:30]} 20. Ne5 {[%clk 0:02:40]}  Qc7 {[%clk 0:02:26]} 21. Ng4 {[%clk 0:02:29]}  f6 {[%clk 0:02:25]} 22. Ne3 {[%clk 0:01:58]}  Kg7 {[%clk 0:02:22]} 23. Rd2 {[%clk 0:01:58]}  Qf4 {[%clk 0:02:08]} 24. f3 {[%clk 0:01:53]}  Rfd8 {[%clk 0:01:58]} 25. Qa3 {[%clk 0:01:49]}  Qc7 {[%clk 0:01:45]} 26. Rc1 {[%clk 0:01:47]}  Qb8 {[%clk 0:01:38]} 27. Qxe7+ {[%clk 0:01:47]}  Kg8 {[%clk 0:01:37]} 28. Ng4 {[%clk 0:01:44]}  Qd6 {[%clk 0:01:35]} 29. Nxf6+ {[%clk 0:01:43]} 1-0


[Site "https://www.chess.com"]

[Event "Titled Tuesday Blitz August 31 2021"]
[White "Murzin, Volodar"]
[Black "Chigaev, Maksim"]
[WhiteFideId "44155573"]
[BlackFideId "4108116"]
[WhiteElo "2541"]
[BlackElo "2579"]
[Result "1-0"]
[Round "07"]
[TimeControl "180+1"]
[Date "2021.08.31"]
[WhiteClock "0:00:04"]
[BlackClock "0:00:40"]

1. d4 {[%clk 0:03:00]}  Nf6 {[%clk 0:02:59]} 2. Nf3 {[%clk 0:03:00]}  g6 {[%clk 0:02:59]} 3. Bg5 {[%clk 0:02:59]}  Bg7 {[%clk 0:02:58]} 4. Nbd2 {[%clk 0:02:59]}  d5 {[%clk 0:02:59]} 5. c3 {[%clk 0:02:56]}  O-O {[%clk 0:02:59]} 6. e3 {[%clk 0:02:56]}  c5 {[%clk 0:02:56]} 7. Bd3 {[%clk 0:02:56]}  Qb6 {[%clk 0:02:55]} 8. Qb3 {[%clk 0:02:38]}  c4 {[%clk 0:02:49]} 9. Qxb6 {[%clk 0:02:38]}  axb6 {[%clk 0:02:50]} 10. Bc2 {[%clk 0:02:38]}  Bf5 {[%clk 0:02:48]} 11. Bxf6 {[%clk 0:02:25]}  Bxf6 {[%clk 0:02:47]} 12. e4 {[%clk 0:02:24]}  dxe4 {[%clk 0:02:47]} 13. Bxe4 {[%clk 0:02:21]}  Bxe4 {[%clk 0:02:47]} 14. Nxe4 {[%clk 0:02:21]}  Nd7 {[%clk 0:02:43]} 15. Ke2 {[%clk 0:02:11]}  b5 {[%clk 0:02:41]} 16. Nfd2 {[%clk 0:02:05]}  Rfc8 {[%clk 0:02:35]} 17. a3 {[%clk 0:01:59]}  Kg7 {[%clk 0:02:34]} 18. f4 {[%clk 0:01:58]}  e6 {[%clk 0:02:31]} 19. Nd6 {[%clk 0:01:56]}  Rc6 {[%clk 0:02:26]} 20. Nxb5 {[%clk 0:01:38]}  Nb6 {[%clk 0:02:04]} 21. Rhb1 {[%clk 0:01:00]}  Ra5 {[%clk 0:02:03]} 22. a4 {[%clk 0:00:56]}  Nxa4 {[%clk 0:01:55]} 23. Na3 {[%clk 0:00:54]}  b5 {[%clk 0:01:41]} 24. Nxb5 {[%clk 0:00:50]}  Rca6 {[%clk 0:01:40]} 25. Nc7 {[%clk 0:00:36]}  Nxc3+ {[%clk 0:01:32]} 26. bxc3 {[%clk 0:00:35]}  Rxa1 {[%clk 0:01:33]} 27. Rxa1 {[%clk 0:00:26]}  Rxa1 {[%clk 0:01:33]} 28. Ne8+ {[%clk 0:00:27]}  Kf8 {[%clk 0:01:33]} 29. Nxf6 {[%clk 0:00:28]}  Rc1 {[%clk 0:01:31]} 30. Nfe4 {[%clk 0:00:20]}  Ke7 {[%clk 0:01:17]} 31. Nxc4 {[%clk 0:00:17]}  f5 {[%clk 0:01:17]} 32. Ng5 {[%clk 0:00:14]}  h6 {[%clk 0:01:14]} 33. Nf3 {[%clk 0:00:10]}  Rxc3 {[%clk 0:01:14]} 34. Nce5 {[%clk 0:00:09]}  Rc2+ {[%clk 0:01:12]} 35. Kf1 {[%clk 0:00:09]}  Kf6 {[%clk 0:01:09]} 36. h4 {[%clk 0:00:09]}  Ra2 {[%clk 0:01:08]} 37. Kg1 {[%clk 0:00:10]}  Re2 {[%clk 0:01:09]} 38. Kh2 {[%clk 0:00:10]}  Re4 {[%clk 0:01:08]} 39. Kg3 {[%clk 0:00:10]}  Re2 {[%clk 0:01:08]} 40. Nd7+ {[%clk 0:00:09]}  Kg7 {[%clk 0:01:06]} 41. Nfe5 {[%clk 0:00:07]}  Re3+ {[%clk 0:01:04]} 42. Kh2 {[%clk 0:00:06]}  Re4 {[%clk 0:01:05]} 43. Nc5 {[%clk 0:00:06]}  Re2 {[%clk 0:01:02]} 44. Nxe6+ {[%clk 0:00:06]}  Kf6 {[%clk 0:01:03]} 45. d5 {[%clk 0:00:07]}  Rd2 {[%clk 0:00:59]} 46. Nc7 {[%clk 0:00:06]}  g5 {[%clk 0:00:59]} 47. d6 {[%clk 0:00:03]}  gxf4 {[%clk 0:00:56]} 48. Nc4 {[%clk 0:00:02]}  Rd4 {[%clk 0:00:55]} 49. Nb6 {[%clk 0:00:01]}  f3 {[%clk 0:00:48]} 50. Nbd5+ {[%clk 0:00:01]}  Ke5 {[%clk 0:00:45]} 51. d7 {[%clk 0:00:02]}  f2 {[%clk 0:00:44]} 52. d8=Q {[%clk 0:00:02]}  Ke4 {[%clk 0:00:39]} 53. Qe7+ {[%clk 0:00:03]}  Kd3 {[%clk 0:00:40]} 54. Qe3+ {[%clk 0:00:04]}  Kc4 {[%clk 0:00:40]} 55. Qc3# {[%clk 0:00:04]} 1-0


[Site "https://www.chess.com"]

[Event "Titled Tuesday Blitz August 31 2021"]
[White "Obrien, Matthew"]
[Black "Rustemov, Alexander"]
[WhiteFideId "2059150"]
[BlackFideId "4119002"]
[WhiteElo "2539"]
[BlackElo "2750"]
[Result "0-1"]
[Round "07"]
[TimeControl "180+1"]
[Date "2021.08.31"]
[WhiteClock "0:00:01"]
[BlackClock "0:00:35"]

1. e4 {[%clk 0:02:59]}  e6 {[%clk 0:02:59]} 2. d4 {[%clk 0:02:59]}  d5 {[%clk 0:02:59]} 3. e5 {[%clk 0:02:58]}  c5 {[%clk 0:02:59]} 4. c3 {[%clk 0:02:57]}  Bd7 {[%clk 0:02:58]} 5. Nf3 {[%clk 0:02:55]}  Qb6 {[%clk 0:02:57]} 6. a3 {[%clk 0:02:53]}  Bb5 {[%clk 0:02:57]} 7. Bxb5+ {[%clk 0:02:51]}  Qxb5 {[%clk 0:02:57]} 8. b4 {[%clk 0:02:50]}  cxd4 {[%clk 0:02:56]} 9. Nxd4 {[%clk 0:02:48]}  Qd7 {[%clk 0:02:49]} 10. O-O {[%clk 0:02:47]}  Ne7 {[%clk 0:02:48]} 11. f4 {[%clk 0:02:43]}  Nbc6 {[%clk 0:02:47]} 12. Be3 {[%clk 0:02:08]}  Nxd4 {[%clk 0:02:40]} 13. Bxd4 {[%clk 0:02:02]}  Nf5 {[%clk 0:02:37]} 14. Nd2 {[%clk 0:01:55]}  h5 {[%clk 0:02:34]} 15. Nb3 {[%clk 0:01:52]}  b6 {[%clk 0:02:22]} 16. a4 {[%clk 0:01:49]}  Be7 {[%clk 0:02:21]} 17. a5 {[%clk 0:01:49]}  Rb8 {[%clk 0:02:18]} 18. axb6 {[%clk 0:01:49]}  axb6 {[%clk 0:02:19]} 19. Ra6 {[%clk 0:01:43]}  Qb5 {[%clk 0:02:16]} 20. Ra7 {[%clk 0:01:32]}  g6 {[%clk 0:02:15]} 21. Qa1 {[%clk 0:01:25]}  O-O {[%clk 0:02:13]} 22. Qa6 {[%clk 0:01:08]}  Qxa6 {[%clk 0:01:52]} 23. Rxa6 {[%clk 0:01:09]}  Rfc8 {[%clk 0:01:51]} 24. Rxb6 {[%clk 0:00:55]}  Rxb6 {[%clk 0:01:49]} 25. Bxb6 {[%clk 0:00:56]}  Rxc3 {[%clk 0:01:49]} 26. Nc5 {[%clk 0:00:49]}  Rc2 {[%clk 0:01:43]} 27. Rf2 {[%clk 0:00:43]}  Rc1+ {[%clk 0:01:37]} 28. Rf1 {[%clk 0:00:43]}  Rc4 {[%clk 0:01:37]} 29. Rb1 {[%clk 0:00:38]}  Rxf4 {[%clk 0:01:35]} 30. b5 {[%clk 0:00:34]}  Rc4 {[%clk 0:01:21]} 31. Nd7 {[%clk 0:00:31]}  d4 {[%clk 0:01:15]} 32. Ba5 {[%clk 0:00:20]}  Bc5 {[%clk 0:00:55]} 33. Nxc5 {[%clk 0:00:11]}  Rxc5 {[%clk 0:00:54]} 34. b6 {[%clk 0:00:12]}  Ne7 {[%clk 0:00:49]} 35. b7 {[%clk 0:00:09]}  Nc6 {[%clk 0:00:49]} 36. Bc7 {[%clk 0:00:07]}  d3 {[%clk 0:00:39]} 37. b8=Q+ {[%clk 0:00:04]}  Nxb8 {[%clk 0:00:39]} 38. Rxb8+ {[%clk 0:00:05]}  Kg7 {[%clk 0:00:38]} 39. Bd6 {[%clk 0:00:03]}  Rc1+ {[%clk 0:00:35]} 40. Kf2 {[%clk 0:00:03]}  d2 {[%clk 0:00:35]} 41. Be7 {[%clk 0:00:01]}  g5 {[%clk 0:00:35]} 0-1


[Site "https://www.chess.com"]

[Event "Titled Tuesday Blitz August 31 2021"]
[White "Odegov, Artem"]
[Black "Do Valle Cardoso, Lucas"]
[WhiteFideId "34183644"]
[BlackFideId "2163144"]
[WhiteElo "2257"]
[BlackElo "2387"]
[Result "0-1"]
[Round "07"]
[TimeControl "180+1"]
[Date "2021.08.31"]
[WhiteClock "0:00:03"]
[BlackClock "0:00:35"]

1. d4 {[%clk 0:03:00]}  d5 {[%clk 0:02:58]} 2. c4 {[%clk 0:03:01]}  dxc4 {[%clk 0:02:59]} 3. Nf3 {[%clk 0:03:00]}  Nf6 {[%clk 0:02:59]} 4. Nc3 {[%clk 0:02:59]}  a6 {[%clk 0:02:59]} 5. a4 {[%clk 0:02:58]}  Nc6 {[%clk 0:02:57]} 6. e4 {[%clk 0:02:58]}  Bg4 {[%clk 0:02:58]} 7. Be3 {[%clk 0:02:57]}  Bxf3 {[%clk 0:02:55]} 8. gxf3 {[%clk 0:02:58]}  e5 {[%clk 0:02:55]} 9. d5 {[%clk 0:02:55]}  Na5 {[%clk 0:02:54]} 10. Bg2 {[%clk 0:02:55]}  Bb4 {[%clk 0:02:51]} 11. O-O {[%clk 0:02:54]}  Nh5 {[%clk 0:02:38]} 12. f4 {[%clk 0:02:44]}  Nxf4 {[%clk 0:02:35]} 13. Bxf4 {[%clk 0:02:44]}  exf4 {[%clk 0:02:36]} 14. Qg4 {[%clk 0:02:43]}  O-O {[%clk 0:02:31]} 15. e5 {[%clk 0:02:39]}  f6 {[%clk 0:02:23]} 16. e6 {[%clk 0:02:36]}  Bd6 {[%clk 0:02:20]} 17. Rad1 {[%clk 0:02:31]}  f5 {[%clk 0:02:14]} 18. Qf3 {[%clk 0:02:27]}  Qf6 {[%clk 0:02:11]} 19. Rfe1 {[%clk 0:02:25]}  Rae8 {[%clk 0:02:07]} 20. Re2 {[%clk 0:02:22]}  g5 {[%clk 0:02:05]} 21. h3 {[%clk 0:02:16]}  Kh8 {[%clk 0:02:04]} 22. Rde1 {[%clk 0:02:12]}  g4 {[%clk 0:02:03]} 23. hxg4 {[%clk 0:02:08]}  fxg4 {[%clk 0:02:04]} 24. Qxg4 {[%clk 0:02:08]}  f3 {[%clk 0:02:04]} 25. e7 {[%clk 0:02:06]}  Rg8 {[%clk 0:02:02]} 26. Ne4 {[%clk 0:01:46]}  Rxg4 {[%clk 0:01:49]} 27. Nxf6 {[%clk 0:01:45]}  Rxg2+ {[%clk 0:01:49]} 28. Kh1 {[%clk 0:01:46]}  Rgg8 {[%clk 0:01:13]} 29. Nxe8 {[%clk 0:01:44]}  Rxe8 {[%clk 0:01:14]} 30. Re3 {[%clk 0:01:42]}  b5 {[%clk 0:01:09]} 31. axb5 {[%clk 0:01:41]}  axb5 {[%clk 0:01:10]} 32. Rxf3 {[%clk 0:01:26]}  Rxe7 {[%clk 0:01:10]} 33. Rg1 {[%clk 0:01:27]}  Rg7 {[%clk 0:01:05]} 34. Re1 {[%clk 0:01:26]}  Re7 {[%clk 0:01:04]} 35. Rg1 {[%clk 0:01:25]}  Re8 {[%clk 0:01:04]} 36. Rf7 {[%clk 0:01:21]}  Rg8 {[%clk 0:00:54]} 37. Re1 {[%clk 0:01:20]}  b4 {[%clk 0:00:51]} 38. Rc1 {[%clk 0:01:01]}  Rf8 {[%clk 0:00:45]} 39. Rxf8+ {[%clk 0:00:28]}  Bxf8 {[%clk 0:00:46]} 40. Kg2 {[%clk 0:00:29]}  Bg7 {[%clk 0:00:41]} 41. Ra1 {[%clk 0:00:28]}  Bxb2 {[%clk 0:00:40]} 42. Rxa5 {[%clk 0:00:27]}  c3 {[%clk 0:00:41]} 43. Rc5 {[%clk 0:00:26]}  b3 {[%clk 0:00:32]} 44. d6 {[%clk 0:00:12]}  cxd6 {[%clk 0:00:31]} 45. Rc8+ {[%clk 0:00:06]}  Kg7 {[%clk 0:00:31]} 46. Rc7+ {[%clk 0:00:06]}  Kg6 {[%clk 0:00:32]} 47. Rc6 {[%clk 0:00:06]}  c2 {[%clk 0:00:32]} 48. Rxd6+ {[%clk 0:00:07]}  Bf6 {[%clk 0:00:31]} 49. Rc6 {[%clk 0:00:06]}  b2 {[%clk 0:00:32]} 50. Rxc2 {[%clk 0:00:07]}  b1=Q {[%clk 0:00:32]} 51. Rc4 {[%clk 0:00:08]}  Qf5 {[%clk 0:00:33]} 52. Ra4 {[%clk 0:00:02]}  h5 {[%clk 0:00:33]} 53. Ra3 {[%clk 0:00:02]}  h4 {[%clk 0:00:32]} 54. Rf3 {[%clk 0:00:02]}  Qg4+ {[%clk 0:00:32]} 55. Rg3 {[%clk 0:00:02]}  hxg3 {[%clk 0:00:33]} 56. fxg3 {[%clk 0:00:03]}  Be5 {[%clk 0:00:34]} 57. Kh1 {[%clk 0:00:03]}  Qh3+ {[%clk 0:00:34]} 58. Kg1 {[%clk 0:00:03]}  Bd4# {[%clk 0:00:35]} 0-1


[Site "https://www.chess.com"]